[Event "*** Titled Tuesday 3|2 Blitz (Early)"]
[Site "Chess.com"]
[Date "2017.01.03"]
[Round "7"]
[White "FlySooHigh"]
[Black "ChessWarrior7197"]
[Result "1-0"]
[WhiteElo "2466"]
[BlackElo "2476"]
[TimeControl "180+2"]
[EndTime "12:27:55 PST"]
[Termination "FlySooHigh won by resignation"]

1. e4 {[%clk 0:03:02]} 1... c5 {[%clk 0:03:00.5]} 2. Nf3 {[%clk 0:03:02.7]} 2...
d6 {[%clk 0:03:01.6]} 3. Nc3 {[%clk 0:03:03]} 3... Nf6 {[%clk 0:03:02]} 4. e5
{[%clk 0:03:04.1]} 4... dxe5 {[%clk 0:03:02.3]} 5. Nxe5 {[%clk 0:03:06]} 5...
Nbd7 {[%clk 0:03:03.2]} 6. d4 {[%clk 0:03:06.7]} 6... cxd4 {[%clk 0:02:59.1]} 7.
Qxd4 {[%clk 0:03:06.3]} 7... e6 {[%clk 0:03:00.3]} 8. Bb5 {[%clk 0:02:58.3]}
8... a6 {[%clk 0:03:01]} 9. Bxd7+ {[%clk 0:02:57.7]} 9... Nxd7 {[%clk
0:03:01.6]} 10. Bf4 {[%clk 0:02:42.8]} 10... Bc5 {[%clk 0:02:53.8]} 11. Qd3
{[%clk 0:02:29.8]} 11... Qb6 {[%clk 0:02:50.5]} 12. O-O-O {[%clk 0:02:26.4]}
12... Nxe5 {[%clk 0:02:36.7]} 13. Bxe5 {[%clk 0:02:28.3]} 13... Bxf2 {[%clk
0:01:22.7]} 14. Bxg7 {[%clk 0:02:24.5]} 14... Qe3+ {[%clk 0:01:21.2]} 15. Kb1
{[%clk 0:02:21.3]} 15... Qxd3 {[%clk 0:01:21.8]} 16. Rxd3 {[%clk 0:02:23.2]}
16... Rg8 {[%clk 0:01:22.5]} 17. Bf6 {[%clk 0:02:21.4]} 17... Bd7 {[%clk
0:01:15]} 18. Rhd1 {[%clk 0:02:19.8]} 18... Rg6 {[%clk 0:01:04.9]} 19. Ne4
{[%clk 0:02:18.3]} 1-0

[Event "*** Titled Tuesday 3|2 Blitz (Early)"]
[Site "Chess.com"]
[Date "2017.01.03"]
[Round "7"]
[White "Mischuk_D"]
[Black "Izoria123"]
[Result "0-1"]
[WhiteElo "2465"]
[BlackElo "2418"]
[TimeControl "180+2"]
[EndTime "12:28:07 PST"]
[Termination "Izoria123 won by resignation"]

1. d4 {[%clk 0:03:02]} 1... d6 {[%clk 0:03:00.9]} 2. e4 {[%clk 0:03:00.1]} 2...
g6 {[%clk 0:03:00.6]} 3. Nc3 {[%clk 0:03:01.1]} 3... Bg7 {[%clk 0:03:02.3]} 4.
f4 {[%clk 0:03:01.4]} 4... a6 {[%clk 0:02:59.2]} 5. Nf3 {[%clk 0:03:02.4]} 5...
b5 {[%clk 0:03:00.1]} 6. a3 {[%clk 0:03:02.5]} 6... Nd7 {[%clk 0:03:00.2]} 7.
Be3 {[%clk 0:03:02.2]} 7... Bb7 {[%clk 0:02:59.3]} 8. Qd2 {[%clk 0:02:57]} 8...
Ngf6 {[%clk 0:02:50.7]} 9. e5 {[%clk 0:02:58.1]} 9... Nd5 {[%clk 0:02:50.8]} 10.
Nxd5 {[%clk 0:02:57.9]} 10... Bxd5 {[%clk 0:02:52.7]} 11. Be2 {[%clk 0:02:58.9]}
11... e6 {[%clk 0:02:50.8]} 12. O-O {[%clk 0:02:58.1]} 12... O-O {[%clk
0:02:51.6]} 13. c3 {[%clk 0:02:55.8]} 13... c5 {[%clk 0:02:48.9]} 14. exd6
{[%clk 0:02:52.2]} 14... c4 {[%clk 0:02:48.6]} 15. Ne5 {[%clk 0:02:49.7]} 15...
Nf6 {[%clk 0:02:49.7]} 16. Bf3 {[%clk 0:02:49.7]} 16... Qxd6 {[%clk 0:02:50.4]}
17. Bf2 {[%clk 0:02:37.6]} 17... Bxf3 {[%clk 0:02:48.4]} 18. Nxf3 {[%clk
0:02:38]} 18... Nd5 {[%clk 0:02:48.5]} 19. Bg3 {[%clk 0:02:37.3]} 19... Qb6
{[%clk 0:02:32.2]} 20. Kh1 {[%clk 0:02:37]} 20... a5 {[%clk 0:02:31.9]} 21. Ne5
{[%clk 0:02:37.9]} 21... Rfc8 {[%clk 0:02:32.2]} 22. Qe2 {[%clk 0:02:33.4]}
22... h5 {[%clk 0:02:31.6]} 23. Bh4 {[%clk 0:02:31.8]} 23... b4 {[%clk
0:02:27.8]} 24. axb4 {[%clk 0:02:32.1]} 24... axb4 {[%clk 0:02:29.7]} 25. Rxa8
{[%clk 0:02:31.8]} 25... Rxa8 {[%clk 0:02:30.4]} 26. Qxc4 {[%clk 0:02:30.9]}
26... bxc3 {[%clk 0:02:28.7]} 27. bxc3 {[%clk 0:02:31.9]} 27... Qb2 {[%clk
0:02:28.1]} 28. Qc6 {[%clk 0:01:57.6]} 28... Ra1 {[%clk 0:02:15]} 29. Qc4 {[%clk
0:01:45.8]} 29... Ne3 {[%clk 0:02:02.2]} 30. Qc8+ {[%clk 0:01:33.2]} 30... Kh7
{[%clk 0:02:02.1]} 0-1

[Event "*** Titled Tuesday 3|2 Blitz (Early)"]
[Site "Chess.com"]
[Date "2017.01.03"]
[Round "7"]
[White "IIIlllII1llIl"]
[Black "IMprovidence"]
[Result "1-0"]
[WhiteElo "2418"]
[BlackElo "2201"]
[TimeControl "180+2"]
[EndTime "12:28:16 PST"]
[Termination "IIIlllII1llIl won on time"]

1. e4 {[%clk 0:03:01.9]} 1... c5 {[%clk 0:03:00.3]} 2. c3 {[%clk 0:03:02.5]}
2... Nf6 {[%clk 0:03:00.1]} 3. e5 {[%clk 0:03:03.3]} 3... Nd5 {[%clk 0:03:01.1]}
4. Nf3 {[%clk 0:03:04.3]} 4... d6 {[%clk 0:02:57]} 5. Bc4 {[%clk 0:03:04]} 5...
e6 {[%clk 0:02:55.9]} 6. d4 {[%clk 0:03:04]} 6... cxd4 {[%clk 0:02:55]} 7. cxd4
{[%clk 0:03:05.9]} 7... Be7 {[%clk 0:02:55.2]} 8. Qe2 {[%clk 0:03:04.8]} 8...
O-O {[%clk 0:02:46.3]} 9. O-O {[%clk 0:03:04.4]} 9... b6 {[%clk 0:02:35.7]} 10.
Bd2 {[%clk 0:03:04.2]} 10... Bb7 {[%clk 0:02:35.5]} 11. Nc3 {[%clk 0:03:04]}
11... Nxc3 {[%clk 0:02:35]} 12. Bxc3 {[%clk 0:03:05.9]} 12... Nd7 {[%clk
0:02:32]} 13. Rfd1 {[%clk 0:02:58.1]} 13... Rc8 {[%clk 0:02:22]} 14. d5 {[%clk
0:02:58.4]} 14... exd5 {[%clk 0:01:49]} 15. Bxd5 {[%clk 0:03:00.3]} 15... Bxd5
{[%clk 0:01:49.8]} 16. Rxd5 {[%clk 0:03:00.2]} 16... Qc7 {[%clk 0:01:41.2]} 17.
exd6 {[%clk 0:02:58.6]} 17... Bxd6 {[%clk 0:01:41.4]} 18. Qd1 {[%clk 0:02:45.5]}
1-0

[Event "*** Titled Tuesday 3|2 Blitz (Early)"]
[Site "Chess.com"]
[Date "2017.01.03"]
[Round "7"]
[White "Quiet_Desperation"]
[Black "rst2003"]
[Result "1/2-1/2"]
[WhiteElo "2357"]
[BlackElo "2124"]
[TimeControl "180+2"]
[EndTime "12:28:21 PST"]
[Termination "Game drawn by repetition"]

1. e4 {[%clk 0:03:01.9]} 1... c5 {[%clk 0:02:59.6]} 2. Nf3 {[%clk 0:03:02.9]}
2... d6 {[%clk 0:03:00]} 3. d4 {[%clk 0:03:04]} 3... cxd4 {[%clk 0:03:01.9]} 4.
Nxd4 {[%clk 0:03:05.7]} 4... Nf6 {[%clk 0:03:03]} 5. Nc3 {[%clk 0:03:07.1]} 5...
g6 {[%clk 0:03:03.9]} 6. Be3 {[%clk 0:03:07.7]} 6... Bg7 {[%clk 0:03:04.9]} 7.
Bc4 {[%clk 0:03:08.9]} 7... Nc6 {[%clk 0:03:05.1]} 8. f3 {[%clk 0:03:06.1]} 8...
O-O {[%clk 0:03:05.7]} 9. Qd2 {[%clk 0:03:06.5]} 9... Bd7 {[%clk 0:03:06.5]} 10.
O-O-O {[%clk 0:03:06.7]} 10... Ne5 {[%clk 0:03:07]} 11. Bb3 {[%clk 0:03:07.8]}
11... Rc8 {[%clk 0:03:07.3]} 12. h4 {[%clk 0:03:08.8]} 12... h5 {[%clk
0:03:07.4]} 13. Bg5 {[%clk 0:03:10]} 13... Rc5 {[%clk 0:03:07.5]} 14. Kb1 {[%clk
0:03:11.1]} 14... b5 {[%clk 0:03:08]} 15. g4 {[%clk 0:03:11.9]} 15... hxg4
{[%clk 0:03:08.8]} 16. h5 {[%clk 0:03:13.5]} 16... Rxc3 {[%clk 0:03:06.6]} 17.
bxc3 {[%clk 0:03:10.5]} 17... Nxf3 {[%clk 0:03:06.9]} 18. Nxf3 {[%clk
0:03:10.3]} 18... Nxe4 {[%clk 0:03:07.7]} 19. Qe3 {[%clk 0:03:05.9]} 19... Nxc3+
{[%clk 0:02:59.2]} 20. Kc1 {[%clk 0:03:05]} 20... gxf3 {[%clk 0:02:07.9]} 21.
Qxf3 {[%clk 0:02:16.1]} 21... Qa5 {[%clk 0:01:36.5]} 22. hxg6 {[%clk 0:02:12.2]}
22... Nxa2+ {[%clk 0:01:35.5]} 23. Kb1 {[%clk 0:01:48.5]} 23... Nc3+ {[%clk
0:01:28.2]} 24. Kc1 {[%clk 0:01:49.5]} 24... Na2+ {[%clk 0:01:10.1]} 25. Kb1
{[%clk 0:01:48.7]} 25... Nc3+ {[%clk 0:01:10.9]} 26. Kc1 {[%clk 0:01:50]} 26...
Na2+ {[%clk 0:01:09.5]} 27. Kb1 {[%clk 0:01:51.1]} 1/2-1/2

[Event "*** Titled Tuesday 3|2 Blitz (Early)"]
[Site "Chess.com"]
[Date "2017.01.03"]
[Round "7"]
[White "petrpalachev"]
[Black "1e41-0"]
[Result "1-0"]
[WhiteElo "2415"]
[BlackElo "2314"]
[TimeControl "180+2"]
[EndTime "12:29:45 PST"]
[Termination "petrpalachev won by resignation"]

1. d3 {[%clk 0:03:02]} 1... d5 {[%clk 0:03:00.6]} 2. Nf3 {[%clk 0:03:02.4]} 2...
Nc6 {[%clk 0:02:56]} 3. Nbd2 {[%clk 0:03:00.5]} 3... e5 {[%clk 0:02:54.8]} 4. g3
{[%clk 0:03:00.6]} 4... Be6 {[%clk 0:02:53.7]} 5. e4 {[%clk 0:03:00.3]} 5... Nf6
{[%clk 0:02:39.5]} 6. Bg2 {[%clk 0:03:00.6]} 6... Bc5 {[%clk 0:02:37.2]} 7. O-O
{[%clk 0:03:00.5]} 7... O-O {[%clk 0:02:34.8]} 8. a4 {[%clk 0:03:02]} 8... a6
{[%clk 0:02:28.2]} 9. c3 {[%clk 0:02:57.5]} 9... Qd7 {[%clk 0:02:26.2]} 10. Qe2
{[%clk 0:02:51.8]} 10... Rad8 {[%clk 0:02:22.9]} 11. b4 {[%clk 0:02:40.7]} 11...
dxe4 {[%clk 0:02:17.9]} 12. dxe4 {[%clk 0:02:35.3]} 12... Bd6 {[%clk 0:02:16.4]}
13. Nc4 {[%clk 0:02:27.6]} 13... Rfe8 {[%clk 0:01:31.7]} 14. Bg5 {[%clk
0:02:23.6]} 14... Bxc4 {[%clk 0:01:24.6]} 15. Qxc4 {[%clk 0:02:23.6]} 15... Qe6
{[%clk 0:01:21.5]} 16. Qe2 {[%clk 0:02:24.1]} 16... h6 {[%clk 0:01:21.8]} 17.
Bc1 {[%clk 0:02:22.3]} 17... Qg4 {[%clk 0:01:12]} 18. Re1 {[%clk 0:02:21.8]}
18... Qg6 {[%clk 0:01:12.2]} 19. Nh4 {[%clk 0:02:21.8]} 19... Qh7 {[%clk
0:01:12.3]} 20. Nf5 {[%clk 0:02:22.2]} 20... Ne7 {[%clk 0:01:12.9]} 21. Nxd6
{[%clk 0:02:21]} 21... cxd6 {[%clk 0:01:12.5]} 22. b5 {[%clk 0:02:13.6]} 22...
a5 {[%clk 0:01:11.8]} 23. Ba3 {[%clk 0:02:13.2]} 23... Nc8 {[%clk 0:01:02.9]}
24. c4 {[%clk 0:02:13.5]} 24... b6 {[%clk 0:01:02.6]} 25. Rad1 {[%clk
0:02:13.6]} 25... Rd7 {[%clk 0:01:02.6]} 26. Bh3 {[%clk 0:02:12.1]} 26... Rc7
{[%clk 0:01:02.3]} 27. Bxd6 {[%clk 0:02:08.4]} 27... Nxd6 {[%clk 0:00:57.1]} 28.
Rxd6 {[%clk 0:02:10.3]} 28... h5 {[%clk 0:00:19.1]} 29. Rxb6 {[%clk 0:02:08.9]}
29... Ng4 {[%clk 0:00:20.3]} 30. Bxg4 {[%clk 0:02:08.9]} 30... hxg4 {[%clk
0:00:21.4]} 31. Rc1 {[%clk 0:02:06.9]} 31... Rec8 {[%clk 0:00:21.8]} 32. Qxg4
{[%clk 0:02:06.4]} 32... f6 {[%clk 0:00:20.3]} 33. Qe6+ {[%clk 0:02:06.4]} 33...
Kh8 {[%clk 0:00:21]} 34. Qd5 {[%clk 0:02:02.8]} 34... Rc5 {[%clk 0:00:21.2]} 35.
Qxc5 {[%clk 0:02:02.4]} 35... Rxc5 {[%clk 0:00:20.9]} 36. Rb8+ {[%clk 0:02:04]}
36... Qg8 {[%clk 0:00:22.8]} 37. Rxg8+ {[%clk 0:02:05.3]} 37... Kxg8 {[%clk
0:00:24.3]} 38. b6 {[%clk 0:02:06.7]} 38... Kf7 {[%clk 0:00:26]} 39. b7 {[%clk
0:02:07.6]} 1-0

[Event "*** Titled Tuesday 3|2 Blitz (Early)"]
[Site "Chess.com"]
[Date "2017.01.03"]
[Round "7"]
[White "PowerThinking2650"]
[Black "Divertissement"]
[Result "0-1"]
[WhiteElo "2274"]
[BlackElo "2461"]
[TimeControl "180+2"]
[EndTime "12:30:46 PST"]
[Termination "Divertissement won by resignation"]

1. e4 {[%clk 0:03:02]} 1... c6 {[%clk 0:03:00.7]} 2. d4 {[%clk 0:03:01.5]} 2...
d5 {[%clk 0:03:01.7]} 3. exd5 {[%clk 0:03:02.9]} 3... cxd5 {[%clk 0:03:02.5]} 4.
Bd3 {[%clk 0:03:04.5]} 4... Nc6 {[%clk 0:03:03.1]} 5. c3 {[%clk 0:03:05.2]} 5...
Qc7 {[%clk 0:03:03.3]} 6. Ne2 {[%clk 0:03:05.4]} 6... e5 {[%clk 0:03:03.6]} 7.
dxe5 {[%clk 0:02:57]} 7... Nxe5 {[%clk 0:03:05.5]} 8. O-O {[%clk 0:02:50.6]}
8... Bd6 {[%clk 0:02:58.9]} 9. Bc2 {[%clk 0:02:42.1]} 9... Nf6 {[%clk
0:02:49.1]} 10. Bg5 {[%clk 0:02:40.9]} 10... Bg4 {[%clk 0:02:45.8]} 11. Bxf6
{[%clk 0:02:36.4]} 11... gxf6 {[%clk 0:02:40.9]} 12. f3 {[%clk 0:02:34.6]} 12...
Be6 {[%clk 0:02:05.7]} 13. Nd4 {[%clk 0:02:07]} 13... O-O-O {[%clk 0:01:46.7]}
14. Kh1 {[%clk 0:01:24.6]} 14... a6 {[%clk 0:01:33.2]} 15. Nd2 {[%clk
0:01:20.8]} 15... Rhg8 {[%clk 0:01:24.6]} 16. Nf5 {[%clk 0:01:09.4]} 16... Bxf5
{[%clk 0:00:58.1]} 17. Bxf5+ {[%clk 0:01:09.8]} 17... Kb8 {[%clk 0:01:00]} 18.
Re1 {[%clk 0:00:46.2]} 18... Rg5 {[%clk 0:00:53.6]} 19. Bh3 {[%clk 0:00:44.6]}
19... Nd3 {[%clk 0:00:53.9]} 20. Re2 {[%clk 0:00:40.5]} 20... Nf4 {[%clk
0:00:40.8]} 21. Rf2 {[%clk 0:00:29.9]} 21... Rdg8 {[%clk 0:00:40.6]} 22. Bg4
{[%clk 0:00:23]} 22... h5 {[%clk 0:00:40.2]} 23. h4 {[%clk 0:00:24]} 23... R5g7
{[%clk 0:00:40.8]} 24. Bf5 {[%clk 0:00:20.9]} 24... Bc5 {[%clk 0:00:26.3]} 25.
Rf1 {[%clk 0:00:13.1]} 25... Rxg2 {[%clk 0:00:25.6]} 0-1

[Event "*** Titled Tuesday 3|2 Blitz (Early)"]
[Site "Chess.com"]
[Date "2017.01.03"]
[Round "7"]
[White "Marreuh"]
[Black "FrankieJay"]
[Result "0-1"]
[WhiteElo "2092"]
[BlackElo "2273"]
[TimeControl "180+2"]
[EndTime "12:30:51 PST"]
[Termination "FrankieJay won by resignation"]

1. e4 {[%clk 0:03:02]} 1... c5 {[%clk 0:03:00.3]} 2. c3 {[%clk 0:03:02.8]} 2...
Nf6 {[%clk 0:03:01.1]} 3. e5 {[%clk 0:03:03.7]} 3... Nd5 {[%clk 0:03:02.5]} 4.
d4 {[%clk 0:03:04.7]} 4... cxd4 {[%clk 0:03:03.7]} 5. cxd4 {[%clk 0:03:06.2]}
5... Nc6 {[%clk 0:03:04.7]} 6. Nf3 {[%clk 0:03:05.9]} 6... d6 {[%clk 0:03:05.3]}
7. Bc4 {[%clk 0:03:06.5]} 7... Nb6 {[%clk 0:03:06.7]} 8. Bb3 {[%clk 0:03:06.4]}
8... d5 {[%clk 0:03:07.2]} 9. Nh4 {[%clk 0:03:06.5]} 9... e6 {[%clk 0:03:08.5]}
10. Nf3 {[%clk 0:03:05]} 10... Be7 {[%clk 0:03:09.9]} 11. O-O {[%clk 0:03:00.9]}
11... O-O {[%clk 0:03:11.3]} 12. Nc3 {[%clk 0:02:57.2]} 12... f6 {[%clk
0:03:11.1]} 13. a3 {[%clk 0:02:51.1]} 13... Bd7 {[%clk 0:02:59]} 14. Qd3 {[%clk
0:02:40.5]} 14... g6 {[%clk 0:02:41.3]} 15. Bh6 {[%clk 0:02:34.2]} 15... Rf7
{[%clk 0:02:42.3]} 16. Nb5 {[%clk 0:02:16.2]} 16... a6 {[%clk 0:01:32.3]} 17.
exf6 {[%clk 0:02:04.3]} 17... Rxf6 {[%clk 0:01:33.1]} 18. Nc3 {[%clk 0:01:55.7]}
18... Rf5 {[%clk 0:01:30.6]} 19. Bc2 {[%clk 0:01:52.3]} 19... Bd6 {[%clk
0:01:18.9]} 20. Rfe1 {[%clk 0:01:32.9]} 20... Rxf3 {[%clk 0:01:05]} 21. Qxf3
{[%clk 0:01:31.6]} 21... Nxd4 {[%clk 0:01:06.4]} 22. Qd1 {[%clk 0:01:13.6]}
22... Nxc2 {[%clk 0:01:07.3]} 23. Qxc2 {[%clk 0:01:11.4]} 23... Qh4 {[%clk
0:01:08.6]} 24. Be3 {[%clk 0:01:05.7]} 24... Qxh2+ {[%clk 0:01:05]} 25. Kf1
{[%clk 0:01:06.8]} 25... Nc4 {[%clk 0:01:06.5]} 26. g3 {[%clk 0:00:20.8]} 26...
Nxe3+ {[%clk 0:01:03.7]} 27. Rxe3 {[%clk 0:00:22.7]} 27... Qh1+ {[%clk
0:01:04.9]} 28. Ke2 {[%clk 0:00:22.7]} 28... Qxa1 {[%clk 0:01:06.2]} 29. Nb1
{[%clk 0:00:21.3]} 29... Bb5+ {[%clk 0:01:04.9]} 30. Ke1 {[%clk 0:00:21.5]}
30... Bf8 {[%clk 0:00:45.4]} 31. Rc3 {[%clk 0:00:21.4]} 31... d4 {[%clk
0:00:41.7]} 32. Rc5 {[%clk 0:00:19.5]} 0-1

[Event "*** Titled Tuesday 3|2 Blitz (Early)"]
[Site "Chess.com"]
[Date "2017.01.03"]
[Round "7"]
[White "Firebullet"]
[Black "Holden-Caulfield"]
[Result "0-1"]
[WhiteElo "2291"]
[BlackElo "2457"]
[TimeControl "180+2"]
[EndTime "12:31:11 PST"]
[Termination "Holden-Caulfield won by checkmate"]

1. d4 {[%clk 0:03:02]} 1... d6 {[%clk 0:03:00.9]} 2. c4 {[%clk 0:03:02.5]} 2...
Nf6 {[%clk 0:03:02.2]} 3. Nc3 {[%clk 0:03:00.3]} 3... Nbd7 {[%clk 0:03:03.3]} 4.
e4 {[%clk 0:03:00.5]} 4... e5 {[%clk 0:03:04.2]} 5. d5 {[%clk 0:03:01.6]} 5...
Nc5 {[%clk 0:03:04.1]} 6. f3 {[%clk 0:03:00.6]} 6... Be7 {[%clk 0:03:05.2]} 7.
Be3 {[%clk 0:03:00.9]} 7... Nh5 {[%clk 0:03:04.9]} 8. Qd2 {[%clk 0:03:02]} 8...
h6 {[%clk 0:03:05.6]} 9. O-O-O {[%clk 0:02:55.4]} 9... Bg5 {[%clk 0:03:06]} 10.
Nge2 {[%clk 0:02:50.9]} 10... Bxe3 {[%clk 0:03:06.8]} 11. Qxe3 {[%clk
0:02:52.8]} 11... Qg5 {[%clk 0:03:07.8]} 12. Qxg5 {[%clk 0:02:19.1]} 12... hxg5
{[%clk 0:03:08.6]} 13. g4 {[%clk 0:02:20.7]} 13... Nf4 {[%clk 0:03:08.6]} 14.
Nxf4 {[%clk 0:02:21.3]} 14... exf4 {[%clk 0:03:09.9]} 15. h3 {[%clk 0:02:15.8]}
15... Nd7 {[%clk 0:03:10.5]} 16. Nb5 {[%clk 0:02:08.1]} 16... Kd8 {[%clk
0:03:11.1]} 17. Nd4 {[%clk 0:02:09.2]} 17... Ne5 {[%clk 0:03:12.2]} 18. Be2
{[%clk 0:02:10.7]} 18... Ke7 {[%clk 0:03:13]} 19. Kd2 {[%clk 0:02:10.8]} 19...
g6 {[%clk 0:03:14]} 20. b4 {[%clk 0:02:10.1]} 20... Bd7 {[%clk 0:03:14.5]} 21.
Rc1 {[%clk 0:02:06]} 21... c5 {[%clk 0:03:10.1]} 22. dxc6 {[%clk 0:02:01.9]}
22... Bxc6 {[%clk 0:03:11.3]} 23. Kc3 {[%clk 0:01:49.2]} 23... f6 {[%clk
0:03:10]} 24. Kb3 {[%clk 0:01:48.4]} 24... Bd7 {[%clk 0:03:08.7]} 25. Rh2 {[%clk
0:01:43.6]} 25... Rac8 {[%clk 0:03:08.2]} 26. a4 {[%clk 0:01:43.1]} 26... Be6
{[%clk 0:03:05.4]} 27. a5 {[%clk 0:01:38.1]} 27... a6 {[%clk 0:03:04.5]} 28. Rc2
{[%clk 0:01:24.9]} 28... Rc7 {[%clk 0:03:03.5]} 29. Rh1 {[%clk 0:01:22.7]} 29...
Bd7 {[%clk 0:03:01.3]} 30. Rc3 {[%clk 0:01:16.1]} 30... Rhc8 {[%clk 0:03:01.5]}
31. Rhc1 {[%clk 0:01:16]} 31... Be6 {[%clk 0:03:02.4]} 32. Bf1 {[%clk
0:01:10.9]} 32... Bf7 {[%clk 0:03:01.2]} 33. Be2 {[%clk 0:01:11.3]} 33... Nd7
{[%clk 0:03:01.1]} 34. Bf1 {[%clk 0:01:11.5]} 34... b5 {[%clk 0:02:55.1]} 35.
axb6 {[%clk 0:00:57.6]} 35... Nxb6 {[%clk 0:02:56.2]} 36. Be2 {[%clk 0:00:58.6]}
36... Rb7 {[%clk 0:02:52.8]} 37. Ka3 {[%clk 0:00:57.6]} 37... Nd7 {[%clk
0:02:50.7]} 38. c5 {[%clk 0:00:51.2]} 38... dxc5 {[%clk 0:02:48.3]} 39. bxc5
{[%clk 0:00:53.1]} 39... Ne5 {[%clk 0:02:45.3]} 40. Ka4 {[%clk 0:00:44]} 40...
Rcb8 {[%clk 0:02:34.8]} 41. Ka3 {[%clk 0:00:38.7]} 41... Rb4 {[%clk 0:02:31.2]}
42. Rd1 {[%clk 0:00:19.6]} 42... a5 {[%clk 0:01:52.3]} 43. c6 {[%clk 0:00:14.7]}
43... Be8 {[%clk 0:01:52.9]} 44. Ka2 {[%clk 0:00:11.9]} 44... Bf7+ {[%clk
0:01:50.2]} 45. Ka3 {[%clk 0:00:12.9]} 45... Be8 {[%clk 0:01:51]} 46. Ka2 {[%clk
0:00:13.9]} 46... Ra4+ {[%clk 0:01:51.2]} 47. Ra3 {[%clk 0:00:10.5]} 47... Bf7+
{[%clk 0:01:52.5]} 48. Ka1 {[%clk 0:00:10.4]} 48... Rxa3# {[%clk 0:01:53.3]} 0-1

[Event "*** Titled Tuesday 3|2 Blitz (Early)"]
[Site "Chess.com"]
[Date "2017.01.03"]
[Round "7"]
[White "kleinebeer98"]
[Black "AlexanderL"]
[Result "0-1"]
[WhiteElo "1740"]
[BlackElo "2572"]
[TimeControl "180+2"]
[EndTime "12:31:16 PST"]
[Termination "AlexanderL won by resignation"]

1. e4 {[%clk 0:03:02]} 1... e6 {[%clk 0:02:54.7]} 2. d4 {[%clk 0:03:03.1]} 2...
d5 {[%clk 0:02:55.8]} 3. Nd2 {[%clk 0:03:04.7]} 3... c5 {[%clk 0:02:56]} 4. Ngf3
{[%clk 0:03:05.9]} 4... cxd4 {[%clk 0:02:55.6]} 5. exd5 {[%clk 0:03:06.8]} 5...
Qxd5 {[%clk 0:02:55.9]} 6. Bc4 {[%clk 0:03:07.3]} 6... Qd6 {[%clk 0:02:46.2]} 7.
O-O {[%clk 0:03:08.8]} 7... Nf6 {[%clk 0:02:46.5]} 8. Nb3 {[%clk 0:03:09.8]}
8... Nc6 {[%clk 0:02:47]} 9. Nbxd4 {[%clk 0:03:10.2]} 9... Nxd4 {[%clk
0:02:47.7]} 10. Nxd4 {[%clk 0:03:12.1]} 10... a6 {[%clk 0:02:47.9]} 11. Re1
{[%clk 0:03:12.8]} 11... Be7 {[%clk 0:02:48.7]} 12. Bf1 {[%clk 0:02:35.8]} 12...
O-O {[%clk 0:02:48.5]} 13. g3 {[%clk 0:02:36.1]} 13... e5 {[%clk 0:02:45.4]} 14.
Nb3 {[%clk 0:02:33.6]} 14... Qxd1 {[%clk 0:02:40.2]} 15. Rxd1 {[%clk 0:02:35.5]}
15... Bg4 {[%clk 0:02:41.5]} 16. Re1 {[%clk 0:02:36.2]} 16... Bd6 {[%clk
0:02:41.5]} 17. Bg2 {[%clk 0:02:35.8]} 17... Rab8 {[%clk 0:02:42.3]} 18. Be3
{[%clk 0:02:27]} 18... e4 {[%clk 0:02:33.5]} 19. Bd4 {[%clk 0:02:24.4]} 19...
Bf3 {[%clk 0:02:09.8]} 20. Bxf3 {[%clk 0:02:22.7]} 20... exf3 {[%clk 0:02:10.9]}
21. Bxf6 {[%clk 0:02:15.2]} 21... gxf6 {[%clk 0:02:11.3]} 22. Re3 {[%clk
0:02:17.1]} 22... Rfe8 {[%clk 0:02:11.6]} 23. Rxf3 {[%clk 0:02:15.5]} 23... Re2
{[%clk 0:02:12.3]} 24. Nd4 {[%clk 0:01:47.6]} 24... Rd2 {[%clk 0:02:10.5]} 25.
Rd3 {[%clk 0:01:42.9]} 25... Rxd3 {[%clk 0:02:11.8]} 26. cxd3 {[%clk 0:01:44.8]}
26... Be5 {[%clk 0:02:12.1]} 27. Nf3 {[%clk 0:01:43.5]} 27... Rd8 {[%clk
0:02:09.7]} 28. d4 {[%clk 0:01:40.1]} 28... Bxd4 {[%clk 0:02:10]} 29. Kg2 {[%clk
0:01:30.2]} 29... Bxb2 {[%clk 0:01:54]} 30. Rb1 {[%clk 0:01:30.6]} 30... Be5
{[%clk 0:01:55.1]} 31. Rxb7 {[%clk 0:01:31.5]} 31... Rd3 {[%clk 0:01:55.5]} 32.
Rb3 {[%clk 0:01:22.2]} 32... Rd5 {[%clk 0:01:55.5]} 33. Nh4 {[%clk 0:01:15.3]}
33... Kf8 {[%clk 0:01:55.2]} 34. Kf3 {[%clk 0:01:02]} 34... Ra5 {[%clk
0:01:55.2]} 35. a3 {[%clk 0:01:02.3]} 35... Bd6 {[%clk 0:01:53.8]} 36. Ke4
{[%clk 0:01:02.5]} 36... f5+ {[%clk 0:01:39.7]} 37. Kd4 {[%clk 0:00:30.8]} 37...
Be7 {[%clk 0:01:35.1]} 38. Nf3 {[%clk 0:00:26.2]} 38... Rxa3 {[%clk 0:01:30.5]}
39. Rxa3 {[%clk 0:00:25.4]} 39... Bxa3 {[%clk 0:01:31.3]} 40. Nh4 {[%clk
0:00:24]} 40... f4 {[%clk 0:01:28.4]} 41. gxf4 {[%clk 0:00:25.9]} 41... Bc1
{[%clk 0:01:29.1]} 42. Kc5 {[%clk 0:00:18.5]} 42... Bxf4 {[%clk 0:01:29.5]} 43.
Kb6 {[%clk 0:00:19.6]} 43... Bxh2 {[%clk 0:01:26.8]} 44. Kxa6 {[%clk 0:00:20.9]}
44... Bg1 {[%clk 0:01:28.1]} 45. f3 {[%clk 0:00:21.5]} 45... Bf2 {[%clk
0:01:29]} 46. Nf5 {[%clk 0:00:21.5]} 46... h5 {[%clk 0:01:30.1]} 47. Kb5 {[%clk
0:00:19.6]} 47... h4 {[%clk 0:01:31.2]} 48. Nh6 {[%clk 0:00:21.1]} 48... h3
{[%clk 0:01:32.2]} 49. Ng4 {[%clk 0:00:22.5]} 49... Bg3 {[%clk 0:01:33.4]} 0-1